[Event "Titled Tuesday Blitz May 16 Early 2023"]
[White "Papayan, Oleg"]
[Black "zsizsi99"]
[WhiteFideId "4193911"]
[WhiteElo "2171"]
[BlackElo "2019"]
[Result "1-0"]
[Round "07"]
[TimeControl "180+2"]
[Date "2023.05.16"]
[WhiteClock "0:00:05"]
[BlackClock "0:00:00"]

1. e4 {[%clk 0:03:00]}  c5 {[%clk 0:02:59]} 2. d4 {[%clk 0:03:00]}  cxd4 {[%clk 0:02:59]} 3. Qxd4 {[%clk 0:03:00]}  Nc6 {[%clk 0:02:59]} 4. Qd3 {[%clk 0:03:01]}  g6 {[%clk 0:02:57]} 5. Nc3 {[%clk 0:03:01]}  Bg7 {[%clk 0:02:57]} 6. Nf3 {[%clk 0:03:02]}  d6 {[%clk 0:02:57]} 7. Be2 {[%clk 0:03:02]}  Nf6 {[%clk 0:02:57]} 8. O-O {[%clk 0:03:02]}  O-O {[%clk 0:02:57]} 9. Nd5 {[%clk 0:03:03]}  Bg4 {[%clk 0:02:56]} 10. c3 {[%clk 0:03:03]}  Rc8 {[%clk 0:02:45]} 11. Bg5 {[%clk 0:03:02]}  Re8 {[%clk 0:02:42]} 12. a4 {[%clk 0:03:01]}  Bxf3 {[%clk 0:02:36]} 13. Qxf3 {[%clk 0:03:00]}  Ne5 {[%clk 0:02:34]} 14. Qe3 {[%clk 0:03:00]}  Nxd5 {[%clk 0:02:20]} 15. exd5 {[%clk 0:02:59]}  Qa5 {[%clk 0:02:20]} 16. Bb5 {[%clk 0:02:49]}  f6 {[%clk 0:01:45]} 17. Bxe8 {[%clk 0:02:48]}  fxg5 {[%clk 0:01:45]} 18. Bb5 {[%clk 0:02:43]}  a6 {[%clk 0:01:45]} 19. Be2 {[%clk 0:02:35]}  Qxd5 {[%clk 0:01:42]} 20. Rfd1 {[%clk 0:02:20]}  Qb3 {[%clk 0:01:41]} 21. Rd2 {[%clk 0:02:16]}  g4 {[%clk 0:01:35]} 22. Ra3 {[%clk 0:01:59]}  Qe6 {[%clk 0:01:20]} 23. a5 {[%clk 0:01:58]}  h5 {[%clk 0:01:09]} 24. Qe4 {[%clk 0:01:52]}  Rc6 {[%clk 0:01:06]} 25. Ra4 {[%clk 0:01:41]}  Bh6 {[%clk 0:01:06]} 26. Rd1 {[%clk 0:01:33]}  Kg7 {[%clk 0:01:02]} 27. Rb4 {[%clk 0:01:33]}  Qc8 {[%clk 0:00:57]} 28. Bd3 {[%clk 0:01:20]}  Qc7 {[%clk 0:00:56]} 29. Qd4 {[%clk 0:01:03]}  Rc5 {[%clk 0:00:46]} 30. Be4 {[%clk 0:00:59]}  Rc4 {[%clk 0:00:28]} 31. Rxc4 {[%clk 0:00:44]}  Qxc4 {[%clk 0:00:27]} 32. Bxb7 {[%clk 0:00:33]}  Qb5 {[%clk 0:00:19]} 33. Qb4 {[%clk 0:00:32]}  Qe2 {[%clk 0:00:18]} 34. Rf1 {[%clk 0:00:24]}  Bf4 {[%clk 0:00:19]} 35. Qxf4 {[%clk 0:00:24]}  Qxb2 {[%clk 0:00:15]} 36. Bd5 {[%clk 0:00:24]}  Qxc3 {[%clk 0:00:13]} 37. Qe3 {[%clk 0:00:15]}  Qxa5 {[%clk 0:00:12]} 38. Be6 {[%clk 0:00:16]}  Qa4 {[%clk 0:00:09]} 39. f3 {[%clk 0:00:13]}  gxf3 {[%clk 0:00:08]} 40. gxf3 {[%clk 0:00:14]}  a5 {[%clk 0:00:08]} 41. f4 {[%clk 0:00:14]}  Nc6 {[%clk 0:00:07]} 42. Qc3+ {[%clk 0:00:13]}  Kh7 {[%clk 0:00:08]} 43. f5 {[%clk 0:00:11]}  Qg4+ {[%clk 0:00:08]} 44. Qg3 {[%clk 0:00:11]}  Qd4+ {[%clk 0:00:07]} 45. Kh1 {[%clk 0:00:08]}  Ne5 {[%clk 0:00:06]} 46. fxg6+ {[%clk 0:00:07]}  Nxg6 {[%clk 0:00:06]} 47. Rf7+ {[%clk 0:00:08]}  Kh6 {[%clk 0:00:06]} 48. Bh3 {[%clk 0:00:02]}  Qd5+ {[%clk 0:00:06]} 49. Rf3 {[%clk 0:00:03]}  Qd1+ {[%clk 0:00:06]} 50. Rf1 {[%clk 0:00:02]}  Qd5+ {[%clk 0:00:06]} 51. Bg2 {[%clk 0:00:02]}  Qe6 {[%clk 0:00:04]} 52. Qf3 {[%clk 0:00:03]}  a4 {[%clk 0:00:04]} 53. Bh3 {[%clk 0:00:03]}  Qe5 {[%clk 0:00:03]} 54. Bf5 {[%clk 0:00:02]}  Nh4 {[%clk 0:00:03]} 55. Qf4+ {[%clk 0:00:03]}  Qxf4 {[%clk 0:00:03]} 56. Rxf4 {[%clk 0:00:04]}  Kg5 {[%clk 0:00:03]} 57. Rxa4 {[%clk 0:00:02]}  Nxf5 {[%clk 0:00:03]} 58. Kg2 {[%clk 0:00:02]}  d5 {[%clk 0:00:02]} 59. Kf3 {[%clk 0:00:02]}  e5 {[%clk 0:00:02]} 60. Ra5 {[%clk 0:00:02]}  e4+ {[%clk 0:00:02]} 61. Ke2 {[%clk 0:00:02]}  d4 {[%clk 0:00:03]} 62. Re5 {[%clk 0:00:02]}  Kf4 {[%clk 0:00:03]} 63. Re8 {[%clk 0:00:03]}  d3+ {[%clk 0:00:04]} 64. Ke1 {[%clk 0:00:03]}  e3 {[%clk 0:00:03]} 65. Rf8 {[%clk 0:00:03]}  Ke4 {[%clk 0:00:03]} 66. Re8+ {[%clk 0:00:04]}  Kf4 {[%clk 0:00:03]} 67. Rf8 {[%clk 0:00:04]}  h4 {[%clk 0:00:02]} 68. h3 {[%clk 0:00:05]}  Ke4 {[%clk 0:00:00]} 69. Re8+ {[%clk 0:00:05]} 1-0


[Site "https://www.chess.com"]

[Event "Titled Tuesday Blitz May 16 Early 2023"]
[White "Lenderman, Aleksandr"]
[Black "Kovalenko, Igor"]
[WhiteFideId "2021285"]
[BlackFideId "14117908"]
[WhiteElo "2607"]
[BlackElo "2574"]
[Result "1-0"]
[Round "08"]
[TimeControl "180+2"]
[Date "2023.05.16"]
[WhiteClock "0:00:32"]
[BlackClock "0:00:12"]

1. Nf3 {[%clk 0:03:00]}  Nf6 {[%clk 0:02:58]} 2. c4 {[%clk 0:03:00]}  e6 {[%clk 0:02:56]} 3. Nc3 {[%clk 0:03:00]}  d5 {[%clk 0:02:56]} 4. e3 {[%clk 0:03:01]}  Nbd7 {[%clk 0:02:52]} 5. b3 {[%clk 0:03:01]}  b6 {[%clk 0:02:51]} 6. Bb2 {[%clk 0:03:00]}  Bb7 {[%clk 0:02:52]} 7. cxd5 {[%clk 0:02:58]}  exd5 {[%clk 0:02:50]} 8. Rc1 {[%clk 0:02:59]}  a6 {[%clk 0:02:49]} 9. Ne2 {[%clk 0:02:59]}  c5 {[%clk 0:02:47]} 10. d4 {[%clk 0:02:47]}  Be7 {[%clk 0:02:44]} 11. g3 {[%clk 0:02:46]}  O-O {[%clk 0:02:43]} 12. Bg2 {[%clk 0:02:47]}  Rc8 {[%clk 0:02:43]} 13. O-O {[%clk 0:02:47]}  c4 {[%clk 0:02:42]} 14. Nd2 {[%clk 0:02:40]}  b5 {[%clk 0:02:42]} 15. bxc4 {[%clk 0:02:40]}  bxc4 {[%clk 0:02:41]} 16. Bc3 {[%clk 0:02:24]}  Bc6 {[%clk 0:02:39]} 17. Rb1 {[%clk 0:02:23]}  Qc7 {[%clk 0:02:38]} 18. Qc2 {[%clk 0:02:16]}  Rb8 {[%clk 0:02:38]} 19. Nf4 {[%clk 0:02:14]}  Bd6 {[%clk 0:02:25]} 20. Rxb8 {[%clk 0:02:06]}  Rxb8 {[%clk 0:02:24]} 21. Rb1 {[%clk 0:02:07]}  g6 {[%clk 0:02:23]} 22. Rxb8+ {[%clk 0:02:06]}  Qxb8 {[%clk 0:02:22]} 23. Nxc4 {[%clk 0:01:59]}  Bxf4 {[%clk 0:02:04]} 24. gxf4 {[%clk 0:01:58]}  Bb5 {[%clk 0:01:59]} 25. Ne5 {[%clk 0:01:57]}  Qc7 {[%clk 0:01:58]} 26. Qb2 {[%clk 0:01:52]}  h5 {[%clk 0:01:38]} 27. h3 {[%clk 0:01:50]}  Nf8 {[%clk 0:01:26]} 28. Be1 {[%clk 0:01:42]}  Ne4 {[%clk 0:01:12]} 29. f3 {[%clk 0:01:37]}  Nd6 {[%clk 0:01:06]} 30. Qc3 {[%clk 0:01:37]}  Qd8 {[%clk 0:00:55]} 31. Qc5 {[%clk 0:01:33]}  Nf5 {[%clk 0:00:55]} 32. Bf2 {[%clk 0:01:26]}  Ne6 {[%clk 0:00:55]} 33. Qb4 {[%clk 0:01:26]}  f6 {[%clk 0:00:42]} 34. a4 {[%clk 0:01:15]}  Be8 {[%clk 0:00:25]} 35. Nd3 {[%clk 0:01:13]}  a5 {[%clk 0:00:25]} 36. Qb3 {[%clk 0:01:10]}  Bc6 {[%clk 0:00:24]} 37. Nc5 {[%clk 0:01:04]}  Nxc5 {[%clk 0:00:20]} 38. dxc5 {[%clk 0:01:05]}  Kg7 {[%clk 0:00:19]} 39. Bf1 {[%clk 0:01:06]}  Qd7 {[%clk 0:00:18]} 40. Bb5 {[%clk 0:01:03]}  Ne7 {[%clk 0:00:18]} 41. Kg2 {[%clk 0:01:03]}  Qe6 {[%clk 0:00:18]} 42. Qc3 {[%clk 0:01:02]}  Kf7 {[%clk 0:00:18]} 43. Qxa5 {[%clk 0:00:58]}  g5 {[%clk 0:00:18]} 44. fxg5 {[%clk 0:00:56]}  fxg5 {[%clk 0:00:19]} 45. Qc7 {[%clk 0:00:56]}  g4 {[%clk 0:00:18]} 46. hxg4 {[%clk 0:00:55]}  Bxb5 {[%clk 0:00:18]} 47. axb5 {[%clk 0:00:55]}  hxg4 {[%clk 0:00:18]} 48. Qf4+ {[%clk 0:00:55]}  Ke8 {[%clk 0:00:18]} 49. Qxg4 {[%clk 0:00:53]}  Qf6 {[%clk 0:00:18]} 50. c6 {[%clk 0:00:51]}  Qc3 {[%clk 0:00:17]} 51. Qd7+ {[%clk 0:00:46]}  Kf8 {[%clk 0:00:17]} 52. c7 {[%clk 0:00:45]}  Qg7+ {[%clk 0:00:15]} 53. Qg4 {[%clk 0:00:42]}  Qc3 {[%clk 0:00:16]} 54. b6 {[%clk 0:00:42]}  Qc6 {[%clk 0:00:16]} 55. Bh4 {[%clk 0:00:35]}  Qc2+ {[%clk 0:00:12]} 56. Kh3 {[%clk 0:00:32]}  Nf5 {[%clk 0:00:12]} 1-0


[Site "https://www.chess.com"]

[Event "Titled Tuesday Blitz May 16 Early 2023"]
[White "Suyarov, Mukhammadzokhid"]
[Black "Zakhartsov, Vladimir"]
[WhiteFideId "14210495"]
[BlackFideId "4145097"]
[WhiteElo "2361"]
[BlackElo "2495"]
[Result "0-1"]
[Round "08"]
[TimeControl "180+2"]
[Date "2023.05.16"]
[WhiteClock "0:00:00"]
[BlackClock "0:00:08"]

1. d4 {[%clk 0:03:00]}  Nf6 {[%clk 0:02:59]} 2. Nc3 {[%clk 0:03:01]}  d5 {[%clk 0:02:59]} 3. Bf4 {[%clk 0:02:59]}  a6 {[%clk 0:02:59]} 4. e3 {[%clk 0:02:55]}  b5 {[%clk 0:02:58]} 5. h4 {[%clk 0:02:53]}  h6 {[%clk 0:02:57]} 6. Nf3 {[%clk 0:02:51]}  e6 {[%clk 0:02:55]} 7. Bd3 {[%clk 0:02:48]}  Bb7 {[%clk 0:02:55]} 8. Ne2 {[%clk 0:02:46]}  c5 {[%clk 0:02:54]} 9. c3 {[%clk 0:02:46]}  Bd6 {[%clk 0:02:48]} 10. Ne5 {[%clk 0:02:45]}  Nc6 {[%clk 0:02:41]} 11. a4 {[%clk 0:02:36]}  c4 {[%clk 0:02:34]} 12. Bb1 {[%clk 0:02:24]}  Bxe5 {[%clk 0:02:30]} 13. dxe5 {[%clk 0:02:17]}  Nd7 {[%clk 0:02:27]} 14. Nd4 {[%clk 0:02:17]}  Ncxe5 {[%clk 0:02:10]} 15. axb5 {[%clk 0:02:16]}  axb5 {[%clk 0:02:08]} 16. Rxa8 {[%clk 0:02:08]}  Bxa8 {[%clk 0:02:08]} 17. Nxb5 {[%clk 0:01:49]}  Qb6 {[%clk 0:02:01]} 18. Qa4 {[%clk 0:01:46]}  O-O {[%clk 0:01:54]} 19. O-O {[%clk 0:01:39]}  Nc5 {[%clk 0:01:18]} 20. Qc2 {[%clk 0:01:34]}  Ned3 {[%clk 0:01:18]} 21. Nd4 {[%clk 0:01:25]}  Qxb2 {[%clk 0:01:10]} 22. Qxb2 {[%clk 0:01:22]}  Nxb2 {[%clk 0:01:11]} 23. Bd6 {[%clk 0:01:18]}  Rc8 {[%clk 0:01:11]} 24. Bc2 {[%clk 0:01:19]}  Nba4 {[%clk 0:00:47]} 25. Ra1 {[%clk 0:01:18]}  Nb7 {[%clk 0:00:35]} 26. Bb4 {[%clk 0:01:17]}  Nac5 {[%clk 0:00:33]} 27. f4 {[%clk 0:01:10]}  Nd3 {[%clk 0:00:32]} 28. Be7 {[%clk 0:01:09]}  Nbc5 {[%clk 0:00:28]} 29. h5 {[%clk 0:01:00]}  Ne4 {[%clk 0:00:28]} 30. Ne2 {[%clk 0:00:57]}  Bc6 {[%clk 0:00:26]} 31. Ra3 {[%clk 0:00:54]}  Ra8 {[%clk 0:00:25]} 32. Rxa8+ {[%clk 0:00:50]}  Bxa8 {[%clk 0:00:26]} 33. g4 {[%clk 0:00:47]}  f6 {[%clk 0:00:26]} 34. Bd8 {[%clk 0:00:45]}  Kf7 {[%clk 0:00:26]} 35. Bb6 {[%clk 0:00:45]}  Bc6 {[%clk 0:00:25]} 36. Kg2 {[%clk 0:00:44]}  e5 {[%clk 0:00:25]} 37. f5 {[%clk 0:00:42]}  Ke7 {[%clk 0:00:24]} 38. Kh3 {[%clk 0:00:39]}  Ndf2+ {[%clk 0:00:17]} 39. Kh4 {[%clk 0:00:38]}  Nd3 {[%clk 0:00:14]} 40. Ba5 {[%clk 0:00:35]}  Kf7 {[%clk 0:00:13]} 41. Ng1 {[%clk 0:00:33]}  Nec5 {[%clk 0:00:12]} 42. Nf3 {[%clk 0:00:31]}  Ba4 {[%clk 0:00:13]} 43. Bb1 {[%clk 0:00:30]}  Bb3 {[%clk 0:00:13]} 44. Nd2 {[%clk 0:00:30]}  Bd1 {[%clk 0:00:11]} 45. Ba2 {[%clk 0:00:26]}  Ke7 {[%clk 0:00:10]} 46. Bb6 {[%clk 0:00:25]}  Nb3 {[%clk 0:00:11]} 47. Nf1 {[%clk 0:00:16]}  Bc2 {[%clk 0:00:11]} 48. e4 {[%clk 0:00:11]}  Ndc1 {[%clk 0:00:10]} 49. Ne3 {[%clk 0:00:10]}  Bxe4 {[%clk 0:00:08]} 50. Bb1 {[%clk 0:00:05]}  Bxb1 {[%clk 0:00:08]} 51. Nxd5+ {[%clk 0:00:06]}  Kf7 {[%clk 0:00:08]} 52. Ne3 {[%clk 0:00:05]}  Bd3 {[%clk 0:00:08]} 53. Bc7 {[%clk 0:00:03]}  Ne2 {[%clk 0:00:09]} 54. Nd5 {[%clk 0:00:04]}  Be4 {[%clk 0:00:08]} 55. Ne3 {[%clk 0:00:04]}  Nd2 {[%clk 0:00:08]} 56. Ba5 {[%clk 0:00:04]}  Nf3+ {[%clk 0:00:08]} 57. Kh3 {[%clk 0:00:05]}  Bd3 {[%clk 0:00:08]} 58. Kg2 {[%clk 0:00:00]}  Nd2 {[%clk 0:00:08]} 0-1


[Site "https://www.chess.com"]

[Event "Titled Tuesday Blitz May 16 Early 2023"]
[White "Nakamura, Hikaru"]
[Black "Kravtsiv, Martyn"]
[WhiteFideId "2016192"]
[BlackFideId "14113147"]
[WhiteElo "2885"]
[BlackElo "2695"]
[Result "1-0"]
[Round "08"]
[TimeControl "180+2"]
[Date "2023.05.16"]
[WhiteClock "0:00:12"]
[BlackClock "0:00:00"]

1. e4 {[%clk 0:03:00]}  e5 {[%clk 0:02:59]} 2. Bc4 {[%clk 0:03:00]}  Nf6 {[%clk 0:02:58]} 3. d3 {[%clk 0:03:00]}  Nc6 {[%clk 0:02:57]} 4. Nc3 {[%clk 0:02:59]}  Na5 {[%clk 0:02:57]} 5. Qf3 {[%clk 0:02:59]}  Be7 {[%clk 0:02:50]} 6. Nge2 {[%clk 0:02:59]}  d6 {[%clk 0:02:49]} 7. Ng3 {[%clk 0:02:58]}  Bg4 {[%clk 0:02:43]} 8. Qe3 {[%clk 0:02:58]}  Qd7 {[%clk 0:02:41]} 9. O-O {[%clk 0:02:48]}  h5 {[%clk 0:02:38]} 10. h3 {[%clk 0:02:48]}  Nxc4 {[%clk 0:02:37]} 11. dxc4 {[%clk 0:02:48]}  Be6 {[%clk 0:02:35]} 12. b3 {[%clk 0:02:47]}  h4 {[%clk 0:02:35]} 13. Nge2 {[%clk 0:02:48]}  g5 {[%clk 0:02:30]} 14. f3 {[%clk 0:02:48]}  Nh5 {[%clk 0:02:29]} 15. Rd1 {[%clk 0:02:47]}  Nf4 {[%clk 0:02:26]} 16. Qf2 {[%clk 0:02:40]}  Rg8 {[%clk 0:02:11]} 17. Kh2 {[%clk 0:02:09]}  b6 {[%clk 0:02:06]} 18. Qf1 {[%clk 0:02:03]}  Kf8 {[%clk 0:01:59]} 19. a4 {[%clk 0:02:02]}  Kg7 {[%clk 0:01:57]} 20. a5 {[%clk 0:02:00]}  Kh7 {[%clk 0:01:53]} 21. Be3 {[%clk 0:01:39]}  Bf6 {[%clk 0:01:35]} 22. Nd5 {[%clk 0:01:20]}  Bg7 {[%clk 0:01:33]} 23. Nec3 {[%clk 0:01:18]}  c6 {[%clk 0:01:29]} 24. axb6 {[%clk 0:01:12]}  cxd5 {[%clk 0:01:29]} 25. cxd5 {[%clk 0:01:11]}  Bxh3 {[%clk 0:01:26]} 26. gxh3 {[%clk 0:01:12]}  axb6 {[%clk 0:01:25]} 27. Nb5 {[%clk 0:00:58]}  f5 {[%clk 0:01:06]} 28. Rxa8 {[%clk 0:00:53]}  Rxa8 {[%clk 0:01:04]} 29. Bxf4 {[%clk 0:00:53]}  exf4 {[%clk 0:01:00]} 30. exf5 {[%clk 0:00:42]}  Ra5 {[%clk 0:00:50]} 31. c4 {[%clk 0:00:30]}  Ra2+ {[%clk 0:00:48]} 32. Kh1 {[%clk 0:00:27]}  Be5 {[%clk 0:00:14]} 33. Qd3 {[%clk 0:00:27]}  Kg7 {[%clk 0:00:14]} 34. Nd4 {[%clk 0:00:25]}  Kf6 {[%clk 0:00:14]} 35. Ne6 {[%clk 0:00:19]}  Qa7 {[%clk 0:00:15]} 36. Qf1 {[%clk 0:00:18]}  Rc2 {[%clk 0:00:12]} 37. Qg1 {[%clk 0:00:18]}  Kf7 {[%clk 0:00:07]} 38. Nxg5+ {[%clk 0:00:18]}  Ke7 {[%clk 0:00:06]} 39. f6+ {[%clk 0:00:17]}  Kxf6 {[%clk 0:00:01]} 40. Ne4+ {[%clk 0:00:18]}  Ke7 {[%clk 0:00:02]} 41. Qg5+ {[%clk 0:00:18]}  Kd7 {[%clk 0:00:02]} 42. Qf5+ {[%clk 0:00:15]}  Kc7 {[%clk 0:00:02]} 43. Rg1 {[%clk 0:00:12]}  Qa2 {[%clk 0:00:00]} 44. Qf7+ {[%clk 0:00:12]} 1-0


[Site "https://www.chess.com"]

[Event "Titled Tuesday Blitz May 16 Early 2023"]
[White "Kamsky, Gata"]
[Black "Nihal Sarin"]
[WhiteFideId "2000024"]
[BlackFideId "25092340"]
[WhiteElo "2660"]
[BlackElo "2689"]
[Result "1/2-1/2"]
[Round "08"]
[TimeControl "180+2"]
[Date "2023.05.16"]
[WhiteClock "0:00:27"]
[BlackClock "0:00:08"]

1. e4 {[%clk 0:03:00]}  g6 {[%clk 0:02:55]} 2. d4 {[%clk 0:02:59]}  Bg7 {[%clk 0:02:56]} 3. Nc3 {[%clk 0:02:56]}  d6 {[%clk 0:02:56]} 4. Nf3 {[%clk 0:02:53]}  Nc6 {[%clk 0:02:55]} 5. h3 {[%clk 0:02:51]}  Nf6 {[%clk 0:02:55]} 6. Bd3 {[%clk 0:02:49]}  O-O {[%clk 0:02:55]} 7. O-O {[%clk 0:02:49]}  e5 {[%clk 0:02:54]} 8. dxe5 {[%clk 0:02:41]}  Nxe5 {[%clk 0:02:54]} 9. Nxe5 {[%clk 0:02:40]}  dxe5 {[%clk 0:02:55]} 10. Bc4 {[%clk 0:02:39]}  Qe7 {[%clk 0:02:53]} 11. Nd5 {[%clk 0:02:36]}  Nxd5 {[%clk 0:02:45]} 12. Bxd5 {[%clk 0:02:36]}  c6 {[%clk 0:02:45]} 13. Bb3 {[%clk 0:02:35]}  Bf6 {[%clk 0:02:34]} 14. Qf3 {[%clk 0:02:31]}  Kg7 {[%clk 0:02:29]} 15. Be3 {[%clk 0:02:28]}  Bg5 {[%clk 0:02:28]} 16. Rad1 {[%clk 0:02:26]}  Bxe3 {[%clk 0:02:26]} 17. Qxe3 {[%clk 0:02:25]}  b6 {[%clk 0:02:26]} 18. Qc3 {[%clk 0:02:24]}  Ba6 {[%clk 0:02:20]} 19. Rfe1 {[%clk 0:02:23]}  Rac8 {[%clk 0:02:20]} 20. Rd2 {[%clk 0:02:14]}  c5 {[%clk 0:01:31]} 21. Bd5 {[%clk 0:02:13]}  f6 {[%clk 0:01:31]} 22. Red1 {[%clk 0:02:12]}  Rfd8 {[%clk 0:01:31]} 23. Qa3 {[%clk 0:02:10]}  Bb5 {[%clk 0:01:31]} 24. c4 {[%clk 0:02:09]}  Be8 {[%clk 0:01:32]} 25. Qg3 {[%clk 0:02:05]}  Rc7 {[%clk 0:01:29]} 26. h4 {[%clk 0:02:02]}  h6 {[%clk 0:01:25]} 27. b3 {[%clk 0:01:44]}  g5 {[%clk 0:01:22]} 28. f3 {[%clk 0:01:41]}  Bg6 {[%clk 0:01:12]} 29. Kf2 {[%clk 0:01:37]}  Rcd7 {[%clk 0:01:11]} 30. Rh1 {[%clk 0:01:36]}  Rh8 {[%clk 0:01:11]} 31. Rdd1 {[%clk 0:01:34]}  Rdd8 {[%clk 0:01:07]} 32. Qh3 {[%clk 0:01:31]}  Rh7 {[%clk 0:00:59]} 33. Qg4 {[%clk 0:01:16]}  Be8 {[%clk 0:00:51]} 34. Qg3 {[%clk 0:00:41]}  Rd6 {[%clk 0:00:51]} 35. Rhe1 {[%clk 0:00:40]}  Rh8 {[%clk 0:00:50]} 36. Kg1 {[%clk 0:00:40]}  Bg6 {[%clk 0:00:50]} 37. Qf2 {[%clk 0:00:36]}  Rhd8 {[%clk 0:00:47]} 38. Qg3 {[%clk 0:00:37]}  Qc7 {[%clk 0:00:47]} 39. Qf2 {[%clk 0:00:36]}  Qc8 {[%clk 0:00:47]} 40. Qg3 {[%clk 0:00:37]}  Qa6 {[%clk 0:00:46]} 41. Rd2 {[%clk 0:00:36]}  Qa5 {[%clk 0:00:46]} 42. Red1 {[%clk 0:00:36]}  Qc3 {[%clk 0:00:46]} 43. Qf2 {[%clk 0:00:36]}  Qa5 {[%clk 0:00:44]} 44. Qg3 {[%clk 0:00:35]}  b5 {[%clk 0:00:33]} 45. cxb5 {[%clk 0:00:34]}  Qxb5 {[%clk 0:00:29]} 46. Bc4 {[%clk 0:00:29]}  Qb6 {[%clk 0:00:26]} 47. Rxd6 {[%clk 0:00:28]}  Rxd6 {[%clk 0:00:27]} 48. Rxd6 {[%clk 0:00:28]}  Qxd6 {[%clk 0:00:27]} 49. Bd5 {[%clk 0:00:28]}  Bf7 {[%clk 0:00:23]} 50. Bxf7 {[%clk 0:00:27]}  Kxf7 {[%clk 0:00:23]} 51. hxg5 {[%clk 0:00:27]}  hxg5 {[%clk 0:00:20]} 52. Qh3 {[%clk 0:00:27]}  Kg7 {[%clk 0:00:16]} 53. Qc8 {[%clk 0:00:27]}  Qd4+ {[%clk 0:00:07]} 54. Kh2 {[%clk 0:00:26]}  Qe3 {[%clk 0:00:06]} 55. Qd7+ {[%clk 0:00:25]}  Kg6 {[%clk 0:00:06]} 56. Qe8+ {[%clk 0:00:25]}  Kg7 {[%clk 0:00:07]} 57. Qe7+ {[%clk 0:00:26]}  Kg6 {[%clk 0:00:07]} 58. Qe8+ {[%clk 0:00:26]}  Kg7 {[%clk 0:00:08]} 59. Qe7+ {[%clk 0:00:27]}  Kg6 {[%clk 0:00:08]} 60. Qe8+ {[%clk 0:00:27]} 1/2-1/2


[Site "https://www.chess.com"]

[Event "Titled Tuesday Blitz May 16 Early 2023"]
[White "Bacrot, Etienne"]
[Black "Andreikin, Dmitry"]
[WhiteFideId "605506"]
[BlackFideId "4158814"]
[WhiteElo "2672"]
[BlackElo "2736"]
[Result "0-1"]
[Round "08"]
[TimeControl "180+2"]
[Date "2023.05.16"]
[WhiteClock "0:00:00"]
[BlackClock "0:00:02"]

1. e4 {[%clk 0:03:00]}  c5 {[%clk 0:02:59]} 2. Nf3 {[%clk 0:03:01]}  g6 {[%clk 0:02:57]} 3. d4 {[%clk 0:03:00]}  cxd4 {[%clk 0:02:58]} 4. Qxd4 {[%clk 0:03:00]}  Nf6 {[%clk 0:02:57]} 5. Nc3 {[%clk 0:03:01]}  Nc6 {[%clk 0:02:57]} 6. Qa4 {[%clk 0:03:01]}  h5 {[%clk 0:02:28]} 7. h3 {[%clk 0:02:47]}  d6 {[%clk 0:02:28]} 8. e5 {[%clk 0:02:47]}  Nd7 {[%clk 0:02:28]} 9. exd6 {[%clk 0:02:32]}  Nc5 {[%clk 0:02:28]} 10. Qf4 {[%clk 0:02:17]}  Bg7 {[%clk 0:02:05]} 11. Be3 {[%clk 0:02:09]}  Ne6 {[%clk 0:01:48]} 12. dxe7 {[%clk 0:02:08]}  Qa5 {[%clk 0:01:36]} 13. Qc4 {[%clk 0:02:00]}  Bd7 {[%clk 0:01:22]} 14. O-O-O {[%clk 0:01:44]}  Rc8 {[%clk 0:01:22]} 15. Qd5 {[%clk 0:01:26]}  Qxd5 {[%clk 0:01:14]} 16. Nxd5 {[%clk 0:01:26]}  Nxe7 {[%clk 0:01:14]} 17. Nxe7 {[%clk 0:01:05]}  Kxe7 {[%clk 0:01:15]} 18. Nd4 {[%clk 0:01:03]}  Nxd4 {[%clk 0:00:59]} 19. Bxd4 {[%clk 0:01:04]}  Bf5 {[%clk 0:00:59]} 20. Re1+ {[%clk 0:00:48]}  Kf8 {[%clk 0:00:57]} 21. Bxg7+ {[%clk 0:00:49]}  Kxg7 {[%clk 0:00:58]} 22. c3 {[%clk 0:00:49]}  h4 {[%clk 0:00:46]} 23. Re3 {[%clk 0:00:37]}  Rhe8 {[%clk 0:00:40]} 24. Rxe8 {[%clk 0:00:35]}  Rxe8 {[%clk 0:00:40]} 25. Bc4 {[%clk 0:00:34]}  Re5 {[%clk 0:00:19]} 26. Rd1 {[%clk 0:00:32]}  Be4 {[%clk 0:00:20]} 27. Bf1 {[%clk 0:00:11]}  Bc6 {[%clk 0:00:16]} 28. Kd2 {[%clk 0:00:10]}  Rd5+ {[%clk 0:00:14]} 29. Kc2 {[%clk 0:00:11]}  Rf5 {[%clk 0:00:12]} 30. f3 {[%clk 0:00:10]}  Kf6 {[%clk 0:00:13]} 31. Rd4 {[%clk 0:00:10]}  g5 {[%clk 0:00:13]} 32. Kd2 {[%clk 0:00:11]}  Ke5 {[%clk 0:00:08]} 33. b3 {[%clk 0:00:10]}  Rf4 {[%clk 0:00:07]} 34. Ke3 {[%clk 0:00:10]}  b6 {[%clk 0:00:07]} 35. Rd8 {[%clk 0:00:09]}  Rf6 {[%clk 0:00:06]} 36. Bc4 {[%clk 0:00:08]}  b5 {[%clk 0:00:05]} 37. Bd3 {[%clk 0:00:07]}  Re6 {[%clk 0:00:05]} 38. Rd4 {[%clk 0:00:08]}  Kf6+ {[%clk 0:00:05]} 39. Kf2 {[%clk 0:00:08]}  a6 {[%clk 0:00:05]} 40. f4 {[%clk 0:00:09]}  Bb7 {[%clk 0:00:02]} 41. fxg5+ {[%clk 0:00:09]}  Kxg5 {[%clk 0:00:03]} 42. Rg4+ {[%clk 0:00:09]}  Kh5 {[%clk 0:00:04]} 43. Be2 {[%clk 0:00:10]}  Rf6+ {[%clk 0:00:03]} 44. Ke1 {[%clk 0:00:10]}  Re6 {[%clk 0:00:03]} 45. Kf2 {[%clk 0:00:10]}  Rf6+ {[%clk 0:00:03]} 46. Rf4+ {[%clk 0:00:10]}  Kg5 {[%clk 0:00:03]} 47. Rxf6 {[%clk 0:00:10]}  Kxf6 {[%clk 0:00:04]} 48. Bf3 {[%clk 0:00:11]}  Bc8 {[%clk 0:00:04]} 49. g3 {[%clk 0:00:11]}  Kg5 {[%clk 0:00:03]} 50. Bg2 {[%clk 0:00:09]}  Be6 {[%clk 0:00:04]} 51. g4 {[%clk 0:00:06]}  a5 {[%clk 0:00:02]} 52. Ke3 {[%clk 0:00:05]}  b4 {[%clk 0:00:03]} 53. c4 {[%clk 0:00:05]}  a4 {[%clk 0:00:03]} 54. Ke4 {[%clk 0:00:03]}  a3 {[%clk 0:00:01]} 55. c5 {[%clk 0:00:03]}  Bxb3 {[%clk 0:00:01]} 56. c6 {[%clk 0:00:03]}  Bxa2 {[%clk 0:00:01]} 57. Ke5 {[%clk 0:00:03]}  Be6 {[%clk 0:00:02]} 58. Bd5 {[%clk 0:00:03]}  a2 {[%clk 0:00:02]} 59. Bxe6 {[%clk 0:00:00]}  a1=Q+ {[%clk 0:00:02]} 0-1


[Site "https://www.chess.com"]